Workbook

Sheet Feuil1
B2: Photos F1
B3: Noms | C3: Photos
B5: Mercedes
B9: Ferrari
B13: Red Bull
B17: Racing Point
B21: Williams
B25: Renault
B29: Toro Rosso
B33: Hass
B37: Mac Laren
B41: Alfa Roméo

Sheet Album Photos
B2: Photos Pilotes
B3: Noms | D3: Photos
B4: Lewis HAMILTON
B5: Valterii BOTTAS
B6: Charles LECLERC
B7: Sebastian VETTEL
B8: Max VERSTAPPEN
B9: Alexander ALBON
B10: Sergio PEREZ
B11: Lance STROLL
B12: George RUSSEL
B13: Nicolas LATIFI
B14: Daniel RICCIARDO
B15: Nico HULKENBERG
B16: Daniil KVYAT
B17: Pierre GASLY
B18: Romain GROSJEAN
B19: Kevin MAGNUSSEN
B20: Lando NORRIS
B21: Carlos SAINZ
B22: Kimi RAÏKKONEN
B23: Antonio GIOVANIZZI

Sheet Champions
C2: CHAMPIONNAT PILOTES 2019
F4: CHAMPION 2019
F5: =IF(Pilotes!G5=1,Pilotes!B5,"") -> HAMILTON Lewis
F6: =MATCH(F5,'Album Photos'!$B$1:$B$23,0) -> 
B7: DEUXIÈME | J7: TROIXIÈME
B8: =IF(Pilotes!G6=2,Pilotes!B6,"") -> BOTTAS Valterri | J8: =IF(Pilotes!G7=3,Pilotes!B7,"") -> ALBON Alexander
B9: =MATCH(B8,'Album Photos'!$B$1:$B$23,0) ->  | J9: =MATCH(J8,'Album Photos'!$B$1:$B$23,0) -> 
C15: CHAMPIONNAT CONSTRUCTEURS 2019
F17: CHAMPION 2019
F18: =IF(Écuries!F4=1,Écuries!B4,"") -> MERCEDES
F19: =MATCH(F18,'Album Photos'!$F$1:$F$13,0) -> 
B20: DEUXIÈME | J20: TROIXIÈME
B21: =IF(Écuries!F5=2,Écuries!B5,"") -> RENAULT | J21: =IF(Écuries!F6=3,Écuries!B6,"") -> WILLIAMS
B22: =MATCH(B21,'Album Photos'!$F$1:$F$13,0) ->  | J22: =MATCH(J21,'Album Photos'!$F$1:$F$13,0) -> 

Sheet Écuries
B3: ÉCURIES | C3: POINTS | D3: Écart/premier | E3: Écart/précédent | F3: RANG
B4: MERCEDES | C4: =SUM(Melbourne:Hongrie!J5) -> 173 | F4: =IF(C4="",0,(RANK(C4,$C$4:$C$13)))+COUNTIF(C$4:C4,C4)-1 -> 1
B5: RENAULT | C5: =SUM(Melbourne:Hongrie!J10) -> 50 | D5: =C5-C4 -> -123 | E5: =C5-C4 -> -123 | F5: =IF(C5="",0,(RANK(C5,$C$4:$C$13)))+COUNTIF(C$4:C5,C5)-1 -> 2
B6: WILLIAMS | C6: =SUM(Melbourne:Hongrie!J9) -> 46 | D6: =C6-C4 -> -127 | E6: =C6-C5 -> -4 | F6: =IF(C6="",0,(RANK(C6,$C$4:$C$13)))+COUNTIF(C$4:C6,C6)-1 -> 3
B7: HASS | C7: =SUM(Melbourne:Hongrie!J12) -> 44 | D7: =C7-C4 -> -129 | E7: -2 | F7: =IF(C7="",0,(RANK(C7,$C$4:$C$13)))+COUNTIF(C$4:C7,C7)-1 -> 4
B8: TORO ROSSO | C8: =SUM(Melbourne:Hongrie!J11) -> 40 | D8: =C8-C4 -> -133 | E8: -4 | F8: =IF(C8="",0,(RANK(C8,$C$4:$C$13)))+COUNTIF(C$4:C8,C8)-1 -> 5
B9: FERRARI | C9: =SUM(Melbourne:Hongrie!J6) -> 27 | D9: =C9-C4 -> -146 | E9: -13 | F9: =IF(C9="",0,(RANK(C9,$C$4:$C$13)))+COUNTIF(C$4:C9,C9)-1 -> 6
B10: ALFA ROMÉO | C10: =SUM(Melbourne:Hongrie!J14) -> 25 | D10: =C10-C4 -> -148 | E10: -2 | F10: =IF(C10="",0,(RANK(C10,$C$4:$C$13)))+COUNTIF(C$4:C10,C10)-1 -> 7
B11: RACING POINT | C11: =SUM(Melbourne:Hongrie!J8) -> 25 | D11: =C11-C4 -> -148 | E11: 0 | F11: =IF(C11="",0,(RANK(C11,$C$4:$C$13)))+COUNTIF(C$4:C11,C11)-1 -> 8
B12: RED BULL | C12: =SUM(Melbourne:Hongrie!J7) -> 18 | D12: =C12-C4 -> -155 | E12: -7 | F12: =IF(C12="",0,(RANK(C12,$C$4:$C$13)))+COUNTIF(C$4:C12,C12)-1 -> 9
B13: Mc LAREN | C13: =SUM(Melbourne:Hongrie!J13) -> 0 | D13: =C13-C4 -> -173 | E13: -18 | F13: =IF(C13="",0,(RANK(C13,$C$4:$C$13)))+COUNTIF(C$4:C13,C13)-1 -> 10

Sheet Pilotes
B3: PILOTES | C3: Points | D3: Écart-premier | E3: Écart/précédent | F3: Pôle Position | G3: Place | H3: 1
C4: =IFERROR(SUM(Melbourne!G33,[1]Bahreïn!F33),"") -> 0 | G4: =IF(C4=0,"",(RANK(C4,C1:C4))) ->  | H4: Pos.Saison
B5: HAMILTON Lewis | C5: =SUM(Melbourne:Hongrie!G5) -> 130 | F5: =SUM(Melbourne:Hongrie!E9) -> 0 | G5: =IF(C5="",0,(RANK(C5,$C$5:$C$24)))+COUNTIF(C$5:C5,C5)-1 -> 1 | H5: =CalculPosition(B5) -> 3 | I5: Syntaxe : =CalculPosition(B5) B5 étant le nom du pilote
B6: BOTTAS Valterri | C6: =SUM(Melbourne:Hongrie!G6) -> 43 | D6: =C6-C5 -> -87 | E6: =C5-C6 -> 87 | F6: =SUM(Melbourne:Hongrie!E10) -> 0 | G6: =IF(C6="",0,(RANK(C6,$C$5:$C$24)))+COUNTIF(C$5:C6,C6)-1 -> 2 | H6: =CalculPosition(B6) -> 1
B7: ALBON Alexander | C7: =SUM(Melbourne:Hongrie!G24) -> 40 | D7: =C7-C5 -> -90 | E7: =C6-C7 -> 3 | F7: =SUM(Melbourne:Hongrie!E11) -> 0 | G7: =IF(C7="",0,(RANK(C7,$C$5:$C$24)))+COUNTIF(C$5:C7,C7)-1 -> 3 | H7: =CalculPosition(B8) -> 1
B8: MAGNUSSEN Kevin | C8: =SUM(Melbourne:Hongrie!G27) -> 29 | D8: =C8-C5 -> -101 | E8: =C7-C8 -> 11 | F8: =SUM(Melbourne:Hongrie!E12) -> 0 | G8: =IF(C8="",0,(RANK(C8,$C$5:$C$24)))+COUNTIF(C$5:C8,C8)-1 -> 4 | H8: =CalculPosition(B11) -> 1
B9: RUSSELL George | C9: =SUM(Melbourne:Hongrie!G17) -> 27 | D9: =C9-C5 -> -103 | E9: =C8-C9 -> 2 | F9: =SUM(Melbourne:Hongrie!E13) -> 0 | G9: =IF(C9="",0,(RANK(C9,$C$5:$C$24)))+COUNTIF(C$5:C9,C9)-1 -> 5 | H9: =CalculPosition(B9) -> 1
B10: RAÏKKÖNEN Kimi | C10: =SUM(Melbourne:Hongrie!G32) -> 25 | D10: =C10-C5 -> -105 | E10: =C9-C10 -> 2 | F10: =SUM(Melbourne:Hongrie!E14) -> 0 | G10: =IF(C10="",0,(RANK(C10,$C$5:$C$24)))+COUNTIF(C$5:C10,C10)-1 -> 6 | H10: 1
B11: HULKENBERG Nico | C11: =SUM(Melbourne:Hongrie!G21) -> 25 | D11: =C11-C5 -> -105 | E11: =C10-C11 -> 0 | F11: =SUM(Melbourne:Hongrie!E15) -> 0 | G11: =IF(C11="",0,(RANK(C11,$C$5:$C$24)))+COUNTIF(C$5:C11,C11)-1 -> 7 | H11: 1
B12: RICCIARDO Daniel | C12: =SUM(Melbourne:Hongrie!G20) -> 25 | D12: =C12-C5 -> -105 | E12: 0 | F12: =SUM(Melbourne:Hongrie!E16) -> 0 | G12: =IF(C12="",0,(RANK(C12,$C$5:$C$24)))+COUNTIF(C$5:C12,C12)-1 -> 8 | H12: 1
B13: PEREZ Sergio | C13: =SUM(Melbourne:Hongrie!G14) -> 21 | D13: =C13-C5 -> -109 | E13: 4 | F13: =SUM(Melbourne:Hongrie!E17) -> 0 | G13: =IF(C13="",0,(RANK(C13,$C$5:$C$24)))+COUNTIF(C$5:C13,C13)-1 -> 9 | H13: 0
B14: KUBICA Robert | C14: =SUM(Melbourne:Hongrie!G18) -> 19 | D14: =C14-C5 -> -111 | E14: 2 | F14: =SUM(Melbourne:Hongrie!E18) -> 0 | G14: =IF(C14="",0,(RANK(C14,$C$5:$C$24)))+COUNTIF(C$5:C14,C14)-1 -> 10 | H14: 0
B15: VETTEL Sebastian | C15: =SUM(Melbourne:Hongrie!G8) -> 15 | D15: =C15-C5 -> -115 | E15: 4 | F15: =SUM(Melbourne:Hongrie!E19) -> 0 | G15: =IF(C15="",0,(RANK(C15,$C$5:$C$24)))+COUNTIF(C$5:C15,C15)-1 -> 11 | H15: 0
B16: GROSJEAN Romain | C16: =SUM(Melbourne:Hongrie!G26) -> 15 | D16: =C16-C5 -> -115 | E16: 0 | F16: =SUM(Melbourne:Hongrie!E20) -> 0 | G16: =IF(C16="",0,(RANK(C16,$C$5:$C$24)))+COUNTIF(C$5:C16,C16)-1 -> 12 | H16: 0
B17: LECLERC Charles | C17: =SUM(Melbourne:Hongrie!G9) -> 12 | D17: =C17-C5 -> -118 | E17: 3 | F17: =SUM(Melbourne:Hongrie!E21) -> 0 | G17: =IF(C17="",0,(RANK(C17,$C$5:$C$24)))+COUNTIF(C$5:C17,C17)-1 -> 13 | H17: 0
B18: VERSTAPPEN Max | C18: =SUM(Melbourne:Hongrie!G11) -> 10 | D18: =C18-C5 -> -120 | E18: 2 | F18: =SUM(Melbourne:Hongrie!E22) -> 0 | G18: =IF(C18="",0,(RANK(C18,$C$5:$C$24)))+COUNTIF(C$5:C18,C18)-1 -> 14 | H18: 0
B19: GASLY Pierre | C19: =SUM(Melbourne:Hongrie!G12) -> 8 | D19: =C19-C5 -> -122 | E19: 2 | F19: =SUM(Melbourne:Hongrie!E23) -> 0 | G19: =IF(C19="",0,(RANK(C19,$C$5:$C$24)))+COUNTIF(C$5:C19,C19)-1 -> 15 | H19: 0
B20: STROLL Lance | C20: =SUM(Melbourne:Hongrie!G15) -> 4 | D20: =C20-C5 -> -126 | E20: 4 | F20: =SUM(Melbourne:Hongrie!E24) -> 0 | G20: =IF(C20="",0,(RANK(C20,$C$5:$C$24)))+COUNTIF(C$5:C20,C20)-1 -> 16 | H20: 0
B21: SAINZ.Jr Carlos | C21: =SUM(Melbourne:Hongrie!G30) -> 0 | D21: =C21-C5 -> -130 | E21: 4 | F21: =SUM(Melbourne:Hongrie!E25) -> 0 | G21: =IF(C21="",0,(RANK(C21,$C$5:$C$24)))+COUNTIF(C$5:C21,C21)-1 -> 17 | H21: 0
B22: NORRIS Lando | C22: =SUM(Melbourne:Hongrie!G29) -> 0 | D22: =C22-C5 -> -130 | E22: 0 | F22: =SUM(Melbourne:Hongrie!E26) -> 0 | G22: =IF(C22="",0,(RANK(C22,$C$5:$C$24)))+COUNTIF(C$5:C22,C22)-1 -> 18 | H22: 0
B23: KVYAT Daniil | C23: =SUM(Melbourne:Hongrie!G23) -> 0 | D23: =C23-C5 -> -130 | E23: =C22-C23 -> 0 | F23: =SUM(Melbourne:Hongrie!E27) -> 0 | G23: =IF(C23="",0,(RANK(C23,$C$5:$C$24)))+COUNTIF(C$5:C23,C23)-1 -> 19 | H23: 0
B24: GIOVANIZZI Antonio | C24: =SUM(Melbourne:Hongrie!G33) -> 0 | D24: =C24-C5 -> -130 | E24: 0 | F24: =SUM(Melbourne:Hongrie!E28) -> 0 | G24: =IF(C24="",0,(RANK(C24,$C$5:$C$24)))+COUNTIF(C$5:C24,C24)-1 -> 20 | H24: 0

Sheet Melbourne
A1: AUSTRALIE - 17 MARS 2019
A3: PILOTES | B3: ECURIES | C3: VOITURES | D3: Finish | E3: Pôle | F3: Pt tour | G3: Points | I3: CLASSEMENT
I4: ÉCURIES | J4: POINTS | K4: RANG
A5: HAMILTON Lewis | B5: MERCEDES | D5: 1 | G5: =IFERROR(CHOOSE(D5,25,18,15,12,10,8,6,4,2,1)+(F5=1),0) -> 25 | I5: MERCEDES | J5: =SUM(G5:G7) -> 43 | K5: =IF(J5="",0,(RANK(J5,$J$5:$J$14)))+COUNTIF(J$5:J5,J5)-1 -> 1
A6: BOTTAS Valterri | D6: 2 | G6: =IFERROR(CHOOSE(D6,25,18,15,12,10,8,6,4,2,1)+(F6=1),0) -> 18 | I6: FERRARI | J6: =SUM(G8:G10) -> 27 | K6: =IF(J6="",0,(RANK(J6,$J$5:$J$14)))+COUNTIF(J$5:J6,J6)-1 -> 2
G7: =IFERROR(CHOOSE(D7,25,18,15,12,10,8,6,4,2,1)+(F7=1),"") ->  | I7: RED BULL | J7: =SUM(G11:G13) -> 18 | K7: =IF(J7="",0,(RANK(J7,$J$5:$J$14)))+COUNTIF(J$5:J7,J7)-1 -> 3
A8: VETTEL Sebastian | B8: FERRARI | D8: 3 | G8: =IFERROR(CHOOSE(D8,25,18,15,12,10,8,6,4,2,1)+(F8=1),0) -> 15 | I8: RACING POINT | J8: =SUM(G14:G16) -> 10 | K8: =IF(J8="",0,(RANK(J8,$J$5:$J$14)))+COUNTIF(J$5:J8,J8)-1 -> 4
A9: LECLERC Charles | D9: 4 | G9: =IFERROR(CHOOSE(D9,25,18,15,12,10,8,6,4,2,1)+(F9=1),0) -> 12 | I9: WILLIAMS | J9: =SUM(G17:G19) -> 3 | K9: =IF(J9="",0,(RANK(J9,$J$5:$J$14)))+COUNTIF(J$5:J9,J9)-1 -> 5
G10: =IFERROR(CHOOSE(D10,25,18,15,12,10,8,6,4,2,1)+(F10=1),"") ->  | I10: RENAULT | J10: =SUM(G20:G22) -> 0 | K10: =IF(J10="",0,(RANK(J10,$J$5:$J$14)))+COUNTIF(J$5:J10,J10)-1 -> 6
A11: VERSTAPPEN Max | B11: RED BULL | D11: 5 | G11: =IFERROR(CHOOSE(D11,25,18,15,12,10,8,6,4,2,1)+(F11=1),0) -> 10 | I11: TORO ROSSO | J11: =SUM(G23:G25) -> 0 | K11: =IF(J11="",0,(RANK(J11,$J$5:$J$14)))+COUNTIF(J$5:J11,J11)-1 -> 7
A12: GASLY Pierre | D12: 6 | G12: =IFERROR(CHOOSE(D12,25,18,15,12,10,8,6,4,2,1)+(F12=1),0) -> 8 | I12: HAAS | J12: =SUM(G26:G28) -> 0 | K12: =IF(J12="",0,(RANK(J12,$J$5:$J$14)))+COUNTIF(J$5:J12,J12)-1 -> 8
G13: =IFERROR(CHOOSE(D13,25,18,15,12,10,8,6,4,2,1)+(F13=1),"") ->  | I13: Mc LAREN | J13: =SUM(G29:G31) -> 0 | K13: =IF(J13="",0,(RANK(J13,$J$5:$J$14)))+COUNTIF(J$5:J13,J13)-1 -> 9
A14: PEREZ Sergio | B14: RACING POINT | D14: 7 | G14: =IFERROR(CHOOSE(D14,25,18,15,12,10,8,6,4,2,1)+(F14=1),0) -> 6 | I14: ALFA ROMEO | J14: =SUM(G32:G34) -> 0 | K14: =IF(J14="",0,(RANK(J14,$J$5:$J$14)))+COUNTIF(J$5:J14,J14)-1 -> 10
A15: STROLL Lance | D15: 8 | G15: =IFERROR(CHOOSE(D15,25,18,15,12,10,8,6,4,2,1)+(F15=1),0) -> 4
G16: =IFERROR(CHOOSE(D16,25,18,15,12,10,8,6,4,2,1)+(F16=1),"") -> 
A17: RUSSELL George | B17: WILLIAMS | D17: 9 | G17: =IFERROR(CHOOSE(D17,25,18,15,12,10,8,6,4,2,1)+(F17=1),0) -> 2
A18: KUBICA Robert | D18: 10 | G18: =IFERROR(CHOOSE(D18,25,18,15,12,10,8,6,4,2,1)+(F18=1),0) -> 1
G19: =IFERROR(CHOOSE(D19,25,18,15,12,10,8,6,4,2,1)+(F19=1),"") -> 
A20: RICCIARDO Daniel | B20: RENAULT | D20: 11 | G20: =IFERROR(CHOOSE(D20,25,18,15,12,10,8,6,4,2,1)+(F20=1),0) -> 0
A21: HULKENBERG Nico | D21: 12 | G21: =IFERROR(CHOOSE(D21,25,18,15,12,10,8,6,4,2,1)+(F21=1),0) -> 0
G22: =IFERROR(CHOOSE(D22,25,18,15,12,10,8,6,4,2,1)+(F22=1),"") -> 
A23: KVYAT Daniil | B23: TORO ROSSO | D23: 13 | G23: =IFERROR(CHOOSE(D23,25,18,15,12,10,8,6,4,2,1)+(F23=1),0) -> 0
A24: ALBON Alexander | D24: 14 | G24: =IFERROR(CHOOSE(D24,25,18,15,12,10,8,6,4,2,1)+(F24=1),0) -> 0
G25: =IFERROR(CHOOSE(D25,25,18,15,12,10,8,6,4,2,1)+(F25=1),"") -> 
A26: GROSJEAN Romain | B26: HAAS | D26: 15 | G26: =IFERROR(CHOOSE(D26,25,18,15,12,10,8,6,4,2,1)+(F26=1),0) -> 0
A27: MAGNUSSEN Kevin | D27: 16 | G27: =IFERROR(CHOOSE(D27,25,18,15,12,10,8,6,4,2,1)+(F27=1),0) -> 0
G28: =IFERROR(CHOOSE(D28,25,18,15,12,10,8,6,4,2,1)+(F28=1),"") -> 
A29: NORRIS Lando | B29: McLAREN | D29: 17 | G29: =IFERROR(CHOOSE(D29,25,18,15,12,10,8,6,4,2,1)+(F29=1),0) -> 0
A30: SAINZ.Jr Carlos | D30: 18 | G30: =IFERROR(CHOOSE(D30,25,18,15,12,10,8,6,4,2,1)+(F30=1),0) -> 0
G31: =IFERROR(CHOOSE(D31,25,18,15,12,10,8,6,4,2,1)+(F31=1),"") -> 
A32: RAÏKKÖNEN Kimi | B32: ALFA ROMEO | D32: 19 | G32: =IFERROR(CHOOSE(D32,25,18,15,12,10,8,6,4,2,1)+(F32=1),0) -> 0
A33: GIOVANIZZI Antonio | D33: 20 | G33: =IFERROR(CHOOSE(D33,25,18,15,12,10,8,6,4,2,1)+(F33=1),0) -> 0
G34: =IFERROR(CHOOSE(D34,25,18,15,12,10,8,6,4,2,1)+(F34=1),"") -> 

Sheet Bahrein
A1: BAHREÏN - 31 MARS 2019
A3: PILOTES | B3: ECURIES | C3: VOITURES | D3: Finish | E3: Pôle | F3: Pt tour | G3: Points | I3: CLASSEMENT
H4: =IF(G4="","",(RANK(G4,G4:G23))) ->  | I4: ÉCURIES | J4: POINTS | K4: RANG | L4: TOTAL
A5: HAMILTON Lewis | B5: MERCEDES | D5: 10 | G5: =IFERROR(CHOOSE(D5,25,18,15,12,10,8,6,4,2,1)+(F5=1),0) -> 1 | I5: MERCEDES | J5: =SUM(G5:G7) -> 26 | K5: =IF(J5="",0,(RANK(J5,$J$5:$J$14)))+COUNTIF(J$5:J5,J5)-1 -> 1 | L5: =IF(J5=0,0,J5+Melbourne!J5) -> 69
A6: BOTTAS Valterri | D6: 1 | G6: =IFERROR(CHOOSE(D6,25,18,15,12,10,8,6,4,2,1)+(F6=1),0) -> 25 | I6: FERRARI | J6: =SUM(G8:G10) -> 0 | K6: =IF(J6="",0,(RANK(J6,$J$5:$J$14)))+COUNTIF(J$5:J6,J6)-1 -> 4 | L6: =IF(J6=0,0,J6+Melbourne!J6) -> 0
I7: RED BULL | J7: =SUM(G11:G13) -> 0 | K7: =IF(J7="",0,(RANK(J7,$J$5:$J$14)))+COUNTIF(J$5:J7,J7)-1 -> 5 | L7: =IF(J7=0,0,J7+Melbourne!J7) -> 0
A8: VETTEL Sebastian | B8: FERRARI | G8: =IFERROR(CHOOSE(D8,25,18,15,12,10,8,6,4,2,1)+(F8=1),0) -> 0 | I8: RACING POINT | J8: =SUM(G14:G16) -> 0 | K8: =IF(J8="",0,(RANK(J8,$J$5:$J$14)))+COUNTIF(J$5:J8,J8)-1 -> 6 | L8: =IF(J8=0,0,J8+Melbourne!J8) -> 0
A9: LECLERC Charles | G9: =IFERROR(CHOOSE(D9,25,18,15,12,10,8,6,4,2,1)+(F9=1),0) -> 0 | I9: WILLIAMS | J9: =SUM(G17:G19) -> 18 | K9: =IF(J9="",0,(RANK(J9,$J$5:$J$14)))+COUNTIF(J$5:J9,J9)-1 -> 2 | L9: =IF(J9=0,0,J9+Melbourne!J9) -> 21
G10: =IFERROR(CHOOSE(D10,25,18,15,12,10,8,6,4,2,1)+(F10=1),"") ->  | I10: RENAULT | J10: =SUM(G20:G22) -> 0 | K10: =IF(J10="",0,(RANK(J10,$J$5:$J$14)))+COUNTIF(J$5:J10,J10)-1 -> 7 | L10: =IF(J10=0,0,J10+Melbourne!J10) -> 0
A11: VERSTAPPEN Max | B11: RED BULL | G11: =IFERROR(CHOOSE(D11,25,18,15,12,10,8,6,4,2,1)+(F11=1),0) -> 0 | I11: TORO ROSSO | J11: =SUM(G23:G25) -> 15 | K11: =IF(J11="",0,(RANK(J11,$J$5:$J$14)))+COUNTIF(J$5:J11,J11)-1 -> 3 | L11: =IF(J11=0,0,J11+Melbourne!J11) -> 15
A12: GASLY Pierre | G12: =IFERROR(CHOOSE(D12,25,18,15,12,10,8,6,4,2,1)+(F12=1),0) -> 0 | I12: HAAS | J12: =SUM(G26:G28) -> 0 | K12: =IF(J12="",0,(RANK(J12,$J$5:$J$14)))+COUNTIF(J$5:J12,J12)-1 -> 8 | L12: =IF(J12=0,0,J12+Melbourne!J12) -> 0
I13: Mc LAREN | J13: =SUM(G29:G31) -> 0 | K13: =IF(J13="",0,(RANK(J13,$J$5:$J$14)))+COUNTIF(J$5:J13,J13)-1 -> 9 | L13: =IF(J13=0,0,J13+Melbourne!J13) -> 0
A14: PEREZ Sergio | B14: RACING POINT | G14: =IFERROR(CHOOSE(D14,25,18,15,12,10,8,6,4,2,1)+(F14=1),0) -> 0 | I14: ALFA ROMEO | J14: =SUM(G32:G34) -> 0 | K14: =IF(J14="",0,(RANK(J14,$J$5:$J$14)))+COUNTIF(J$5:J14,J14)-1 -> 10 | L14: =IF(J14=0,0,J14+Melbourne!J14) -> 0
A15: STROLL Lance | G15: =IFERROR(CHOOSE(D15,25,18,15,12,10,8,6,4,2,1)+(F15=1),0) -> 0
A17: RUSSELL George | B17: WILLIAMS | G17: =IFERROR(CHOOSE(D17,25,18,15,12,10,8,6,4,2,1)+(F17=1),0) -> 0
A18: KUBICA Robert | D18: 2 | G18: =IFERROR(CHOOSE(D18,25,18,15,12,10,8,6,4,2,1)+(F18=1),0) -> 18
A20: RICCIARDO Daniel | B20: RENAULT | G20: =IFERROR(CHOOSE(D20,25,18,15,12,10,8,6,4,2,1)+(F20=1),0) -> 0
A21: HULKENBERG Nico | G21: =IFERROR(CHOOSE(D21,25,18,15,12,10,8,6,4,2,1)+(F21=1),0) -> 0
A23: KVYAT Daniil | B23: TORO ROSSO | G23: =IFERROR(CHOOSE(D23,25,18,15,12,10,8,6,4,2,1)+(F23=1),0) -> 0
A24: ALBON Alexander | D24: 3 | G24: =IFERROR(CHOOSE(D24,25,18,15,12,10,8,6,4,2,1)+(F24=1),0) -> 15
A26: GROSJEAN Romain | B26: HAAS | G26: =IFERROR(CHOOSE(D26,25,18,15,12,10,8,6,4,2,1)+(F26=1),0) -> 0
A27: MAGNUSSEN Kevin | G27: =IFERROR(CHOOSE(D27,25,18,15,12,10,8,6,4,2,1)+(F27=1),0) -> 0
A29: NORRIS Lando | B29: McLAREN | G29: =IFERROR(CHOOSE(D29,25,18,15,12,10,8,6,4,2,1)+(F29=1),0) -> 0
A30: SAINZ.Jr Carlos | G30: =IFERROR(CHOOSE(D30,25,18,15,12,10,8,6,4,2,1)+(F30=1),0) -> 0
A32: RAÏKKÖNEN Kimi | B32: ALFA ROMEO | G32: =IFERROR(CHOOSE(D32,25,18,15,12,10,8,6,4,2,1)+(F32=1),0) -> 0
A33: GIOVANIZZI Antonio | G33: =IFERROR(CHOOSE(D33,25,18,15,12,10,8,6,4,2,1)+(F33=1),0) -> 0

Sheet Chine
A1: CHINE - 14 AVRIL 2019
A3: PILOTES | B3: ECURIES | C3: VOITURES | D3: Finish | E3: Pôle | F3: Pt tour | G3: Points | I3: CLASSEMENT
H4: =IF(G4="","",(RANK(G4,G4:G23))) ->  | I4: ÉCURIES | J4: POINTS | K4: RANG | L4: TOTAL
A5: HAMILTON Lewis | B5: MERCEDES | D5: 2 | G5: =IFERROR(CHOOSE(D5,25,18,15,12,10,8,6,4,2,1)+(F5=1),0) -> 18 | I5: MERCEDES | J5: =SUM(G5:G7) -> 18 | K5: =IF(J5="",0,(RANK(J5,$J$5:$J$14)))+COUNTIF(J$5:J5,J5)-1 -> 2 | L5: =IF(J5=0,0,J5+Bahrein!L5) -> 87
A6: BOTTAS Valterri | G6: 0 | I6: FERRARI | J6: =SUM(G8:G10) -> 0 | K6: =IF(J6="",0,(RANK(J6,$J$5:$J$14)))+COUNTIF(J$5:J6,J6)-1 -> 3 | L6: =IF(J6=0,0,J6+Bahrein!L6) -> 0
G7: 0 | I7: RED BULL | J7: =SUM(G11:G13) -> 0 | K7: =IF(J7="",0,(RANK(J7,$J$5:$J$14)))+COUNTIF(J$5:J7,J7)-1 -> 4 | L7: =IF(J7=0,0,J7+Bahrein!L7) -> 0
A8: VETTEL Sebastian | B8: FERRARI | G8: 0 | I8: RACING POINT | J8: =SUM(G14:G16) -> 0 | K8: =IF(J8="",0,(RANK(J8,$J$5:$J$14)))+COUNTIF(J$5:J8,J8)-1 -> 5 | L8: =IF(J8=0,0,J8+Bahrein!L8) -> 0
A9: LECLERC Charles | G9: 0 | I9: WILLIAMS | J9: =SUM(G17:G19) -> 25 | K9: =IF(J9="",0,(RANK(J9,$J$5:$J$14)))+COUNTIF(J$5:J9,J9)-1 -> 1 | L9: =IF(J9=0,0,J9+Bahrein!L9) -> 46
G10: 0 | I10: RENAULT | J10: =SUM(G20:G22) -> 0 | K10: =IF(J10="",0,(RANK(J10,$J$5:$J$14)))+COUNTIF(J$5:J10,J10)-1 -> 6 | L10: =IF(J10=0,0,J10+Bahrein!L10) -> 0
A11: VERSTAPPEN Max | B11: RED BULL | G11: 0 | I11: TORO ROSSO | J11: =SUM(G23:G25) -> 0 | K11: =IF(J11="",0,(RANK(J11,$J$5:$J$14)))+COUNTIF(J$5:J11,J11)-1 -> 7 | L11: =IF(J11=0,0,J11+Bahrein!L11) -> 0
A12: GASLY Pierre | G12: 0 | I12: HAAS | J12: =SUM(G26:G28) -> 0 | K12: =IF(J12="",0,(RANK(J12,$J$5:$J$14)))+COUNTIF(J$5:J12,J12)-1 -> 8 | L12: =IF(J12=0,0,J12+Bahrein!L12) -> 0
G13: 0 | I13: Mc LAREN | J13: =SUM(G29:G31) -> 0 | K13: =IF(J13="",0,(RANK(J13,$J$5:$J$14)))+COUNTIF(J$5:J13,J13)-1 -> 9 | L13: =IF(J13=0,0,J13+Bahrein!L13) -> 0
A14: PEREZ Sergio | B14: RACING POINT | G14: 0 | I14: ALFA ROMEO | J14: =SUM(G32:G34) -> 0 | K14: =IF(J14="",0,(RANK(J14,$J$5:$J$14)))+COUNTIF(J$5:J14,J14)-1 -> 10 | L14: =IF(J14=0,0,J14+Bahrein!L14) -> 0
A15: STROLL Lance | G15: 0
G16: 0
A17: RUSSELL George | B17: WILLIAMS | D17: 1 | G17: 25
A18: KUBICA Robert | G18: 0
G19: 0
A20: RICCIARDO Daniel | B20: RENAULT | G20: 0
A21: HULKENBERG Nico | G21: 0
G22: 0
A23: KVYAT Daniil | B23: TORO ROSSO | G23: 0
A24: ALBON Alexander | G24: 0
G25: 0
A26: GROSJEAN Romain | B26: HAAS | G26: 0
A27: MAGNUSSEN Kevin | G27: 0
G28: 0
A29: NORRIS Lando | B29: McLAREN | D29: OUT | G29: 0
A30: SAINZ.Jr Carlos | G30: 0
G31: 0
A32: RAÏKKÖNEN Kimi | B32: ALFA ROMEO | G32: 0
A33: GIOVANIZZI Antonio | G33: 0
G34: 0

Sheet Azerbaïdjan
A1: AZERBAÏDJAN - 28 AVRIL 2019
A3: PILOTES | B3: ECURIES | C3: VOITURES | D3: Finish | E3: Pôle | F3: Pt tour | G3: Points | I3: CLASSEMENT
H4: =IF(G4="","",(RANK(G4,G4:G23))) ->  | I4: ÉCURIES | J4: POINTS | K4: RANG | L4: TOTAL
A5: HAMILTON Lewis | B5: MERCEDES | D5: 2 | G5: =IFERROR(CHOOSE(D5,25,18,15,12,10,8,6,4,2,1)+(F5=1),0) -> 18 | I5: MERCEDES | J5: =SUM(G5:G7) -> 18 | K5: =IF(J5="",0,(RANK(J5,$J$5:$J$14)))+COUNTIF(J$5:J5,J5)-1 -> 2 | L5: =IF(J5=0,0,J5+Chine!L5) -> 105
A6: BOTTAS Valterri | G6: =IFERROR(CHOOSE(D6,25,18,15,12,10,8,6,4,2,1)+(F6=1),0) -> 0 | I6: FERRARI | J6: =SUM(G8:G10) -> 0 | K6: =IF(J6="",0,(RANK(J6,$J$5:$J$14)))+COUNTIF(J$5:J6,J6)-1 -> 3 | L6: =IF(J6=0,0,J6+Chine!L6) -> 0
G7: =IFERROR(CHOOSE(D7,25,18,15,12,10,8,6,4,2,1)+(F7=1),"") ->  | I7: RED BULL | J7: =SUM(G11:G13) -> 0 | K7: =IF(J7="",0,(RANK(J7,$J$5:$J$14)))+COUNTIF(J$5:J7,J7)-1 -> 4 | L7: =IF(J7=0,0,J7+Chine!L7) -> 0
A8: VETTEL Sebastian | B8: FERRARI | G8: =IFERROR(CHOOSE(D8,25,18,15,12,10,8,6,4,2,1)+(F8=1),0) -> 0 | I8: RACING POINT | J8: =SUM(G14:G16) -> 0 | K8: =IF(J8="",0,(RANK(J8,$J$5:$J$14)))+COUNTIF(J$5:J8,J8)-1 -> 5 | L8: =IF(J8=0,0,J8+Chine!L8) -> 0
A9: LECLERC Charles | G9: =IFERROR(CHOOSE(D9,25,18,15,12,10,8,6,4,2,1)+(F9=1),0) -> 0 | I9: WILLIAMS | J9: =SUM(G17:G19) -> 0 | K9: =IF(J9="",0,(RANK(J9,$J$5:$J$14)))+COUNTIF(J$5:J9,J9)-1 -> 6 | L9: =IF(J9=0,0,J9+Chine!L9) -> 0
G10: =IFERROR(CHOOSE(D10,25,18,15,12,10,8,6,4,2,1)+(F10=1),"") ->  | I10: RENAULT | J10: =SUM(G20:G22) -> 0 | K10: =IF(J10="",0,(RANK(J10,$J$5:$J$14)))+COUNTIF(J$5:J10,J10)-1 -> 7 | L10: =IF(J10=0,0,J10+Chine!L10) -> 0
A11: VERSTAPPEN Max | B11: RED BULL | G11: =IFERROR(CHOOSE(D11,25,18,15,12,10,8,6,4,2,1)+(F11=1),0) -> 0 | I11: TORO ROSSO | J11: =SUM(G23:G25) -> 25 | K11: =IF(J11="",0,(RANK(J11,$J$5:$J$14)))+COUNTIF(J$5:J11,J11)-1 -> 1 | L11: =IF(J11=0,0,J11+Chine!L11) -> 25
A12: GASLY Pierre | G12: =IFERROR(CHOOSE(D12,25,18,15,12,10,8,6,4,2,1)+(F12=1),0) -> 0 | I12: HAAS | J12: =SUM(G26:G28) -> 0 | K12: =IF(J12="",0,(RANK(J12,$J$5:$J$14)))+COUNTIF(J$5:J12,J12)-1 -> 8 | L12: =IF(J12=0,0,J12+Chine!L12) -> 0
G13: =IFERROR(CHOOSE(D13,25,18,15,12,10,8,6,4,2,1)+(F13=1),"") ->  | I13: Mc LAREN | J13: =SUM(G29:G31) -> 0 | K13: =IF(J13="",0,(RANK(J13,$J$5:$J$14)))+COUNTIF(J$5:J13,J13)-1 -> 9 | L13: =IF(J13=0,0,J13+Chine!L13) -> 0
A14: PEREZ Sergio | B14: RACING POINT | G14: =IFERROR(CHOOSE(D14,25,18,15,12,10,8,6,4,2,1)+(F14=1),0) -> 0 | I14: ALFA ROMEO | J14: =SUM(G32:G34) -> 0 | K14: =IF(J14="",0,(RANK(J14,$J$5:$J$14)))+COUNTIF(J$5:J14,J14)-1 -> 10 | L14: =IF(J14=0,0,J14+Chine!L14) -> 0
A15: STROLL Lance | G15: =IFERROR(CHOOSE(D15,25,18,15,12,10,8,6,4,2,1)+(F15=1),0) -> 0
G16: =IFERROR(CHOOSE(D16,25,18,15,12,10,8,6,4,2,1)+(F16=1),"") -> 
A17: RUSSELL George | B17: WILLIAMS | G17: =IFERROR(CHOOSE(D17,25,18,15,12,10,8,6,4,2,1)+(F17=1),0) -> 0
A18: KUBICA Robert | G18: =IFERROR(CHOOSE(D18,25,18,15,12,10,8,6,4,2,1)+(F18=1),0) -> 0 | S18: =IF(R18="",0,(RANK(R18,$J$5:$J$14)))+COUNTIF(R$5:R18,R18)-1 -> -1
G19: =IFERROR(CHOOSE(D19,25,18,15,12,10,8,6,4,2,1)+(F19=1),"") -> 
A20: RICCIARDO Daniel | B20: RENAULT | G20: =IFERROR(CHOOSE(D20,25,18,15,12,10,8,6,4,2,1)+(F20=1),0) -> 0
A21: HULKENBERG Nico | G21: =IFERROR(CHOOSE(D21,25,18,15,12,10,8,6,4,2,1)+(F21=1),0) -> 0
G22: =IFERROR(CHOOSE(D22,25,18,15,12,10,8,6,4,2,1)+(F22=1),"") -> 
A23: KVYAT Daniil | B23: TORO ROSSO | G23: =IFERROR(CHOOSE(D23,25,18,15,12,10,8,6,4,2,1)+(F23=1),0) -> 0
A24: ALBON Alexander | D24: 1 | G24: =IFERROR(CHOOSE(D24,25,18,15,12,10,8,6,4,2,1)+(F24=1),0) -> 25
G25: =IFERROR(CHOOSE(D25,25,18,15,12,10,8,6,4,2,1)+(F25=1),"") -> 
A26: GROSJEAN Romain | B26: HAAS | G26: =IFERROR(CHOOSE(D26,25,18,15,12,10,8,6,4,2,1)+(F26=1),0) -> 0
A27: MAGNUSSEN Kevin | G27: =IFERROR(CHOOSE(D27,25,18,15,12,10,8,6,4,2,1)+(F27=1),0) -> 0
G28: =IFERROR(CHOOSE(D28,25,18,15,12,10,8,6,4,2,1)+(F28=1),"") -> 
A29: NORRIS Lando | B29: McLAREN | G29: =IFERROR(CHOOSE(D29,25,18,15,12,10,8,6,4,2,1)+(F29=1),0) -> 0
A30: SAINZ.Jr Carlos | G30: =IFERROR(CHOOSE(D30,25,18,15,12,10,8,6,4,2,1)+(F30=1),0) -> 0
G31: =IFERROR(CHOOSE(D31,25,18,15,12,10,8,6,4,2,1)+(F31=1),"") -> 
A32: RAÏKKÖNEN Kimi | B32: ALFA ROMEO | G32: =IFERROR(CHOOSE(D32,25,18,15,12,10,8,6,4,2,1)+(F32=1),0) -> 0
A33: GIOVANIZZI Antonio | G33: =IFERROR(CHOOSE(D33,25,18,15,12,10,8,6,4,2,1)+(F33=1),0) -> 0
G34: =IFERROR(CHOOSE(D34,25,18,15,12,10,8,6,4,2,1)+(F34=1),"") -> 

Sheet Espagne
A1: ESPAGNE - 12 MAI 2019
A3: PILOTES | B3: ECURIES | C3: VOITURES | D3: Finish | E3: Pôle | F3: Pt tour | G3: Points | I3: CLASSEMENT
H4: =IF(G4="","",(RANK(G4,G4:G23))) ->  | I4: ÉCURIES | J4: POINTS | K4: RANG | L4: TOTAL
A5: HAMILTON Lewis | B5: MERCEDES | D5: 1 | G5: =IFERROR(CHOOSE(D5,25,18,15,12,10,8,6,4,2,1)+(F5=1),0) -> 25 | I5: MERCEDES | J5: =SUM(G5:G7) -> 25 | K5: =IF(J5="",0,(RANK(J5,$J$5:$J$14)))+COUNTIF(J$5:J5,J5)-1 -> 1 | L5: =IF(J5=0,0,J5+Azerbaïdjan!L5) -> 130
A6: BOTTAS Valterri | G6: =IFERROR(CHOOSE(D6,25,18,15,12,10,8,6,4,2,1)+(F6=1),0) -> 0 | I6: FERRARI | J6: =SUM(G8:G10) -> 0 | K6: =IF(J6="",0,(RANK(J6,$J$5:$J$14)))+COUNTIF(J$5:J6,J6)-1 -> 4 | L6: =IF(J6=0,0,J6+Azerbaïdjan!L6) -> 0
G7: =IFERROR(CHOOSE(D7,25,18,15,12,10,8,6,4,2,1)+(F7=1),"") ->  | I7: RED BULL | J7: =SUM(G11:G13) -> 0 | K7: =IF(J7="",0,(RANK(J7,$J$5:$J$14)))+COUNTIF(J$5:J7,J7)-1 -> 5 | L7: =IF(J7=0,0,J7+Azerbaïdjan!L7) -> 0
A8: VETTEL Sebastian | B8: FERRARI | G8: =IFERROR(CHOOSE(D8,25,18,15,12,10,8,6,4,2,1)+(F8=1),0) -> 0 | I8: RACING POINT | J8: =SUM(G14:G16) -> 0 | K8: =IF(J8="",0,(RANK(J8,$J$5:$J$14)))+COUNTIF(J$5:J8,J8)-1 -> 6 | L8: =IF(J8=0,0,J8+Azerbaïdjan!L8) -> 0
A9: LECLERC Charles | G9: =IFERROR(CHOOSE(D9,25,18,15,12,10,8,6,4,2,1)+(F9=1),0) -> 0 | I9: WILLIAMS | J9: =SUM(G17:G19) -> 0 | K9: =IF(J9="",0,(RANK(J9,$J$5:$J$14)))+COUNTIF(J$5:J9,J9)-1 -> 7 | L9: =IF(J9=0,0,J9+Azerbaïdjan!L9) -> 0
G10: =IFERROR(CHOOSE(D10,25,18,15,12,10,8,6,4,2,1)+(F10=1),"") ->  | I10: RENAULT | J10: =SUM(G20:G22) -> 25 | K10: =IF(J10="",0,(RANK(J10,$J$5:$J$14)))+COUNTIF(J$5:J10,J10)-1 -> 2 | L10: =IF(J10=0,0,J10+Azerbaïdjan!L10) -> 25
A11: VERSTAPPEN Max | B11: RED BULL | G11: =IFERROR(CHOOSE(D11,25,18,15,12,10,8,6,4,2,1)+(F11=1),0) -> 0 | I11: TORO ROSSO | J11: =SUM(G23:G25) -> 0 | K11: =IF(J11="",0,(RANK(J11,$J$5:$J$14)))+COUNTIF(J$5:J11,J11)-1 -> 8 | L11: =IF(J11=0,0,J11+Azerbaïdjan!L11) -> 0
A12: GASLY Pierre | G12: =IFERROR(CHOOSE(D12,25,18,15,12,10,8,6,4,2,1)+(F12=1),0) -> 0 | I12: HAAS | J12: =SUM(G26:G28) -> 15 | K12: =IF(J12="",0,(RANK(J12,$J$5:$J$14)))+COUNTIF(J$5:J12,J12)-1 -> 3 | L12: =IF(J12=0,0,J12+Azerbaïdjan!L12) -> 15
G13: =IFERROR(CHOOSE(D13,25,18,15,12,10,8,6,4,2,1)+(F13=1),0) -> 0 | I13: Mc LAREN | J13: =SUM(G29:G31) -> 0 | K13: =IF(J13="",0,(RANK(J13,$J$5:$J$14)))+COUNTIF(J$5:J13,J13)-1 -> 9 | L13: =IF(J13=0,0,J13+Azerbaïdjan!L13) -> 0
A14: PEREZ Sergio | B14: RACING POINT | D14: OUT | G14: =IFERROR(CHOOSE(D14,25,18,15,12,10,8,6,4,2,1)+(F14=1),0) -> 0 | I14: ALFA ROMEO | J14: =SUM(G32:G34) -> 0 | K14: =IF(J14="",0,(RANK(J14,$J$5:$J$14)))+COUNTIF(J$5:J14,J14)-1 -> 10 | L14: =IF(J14=0,0,J14+Azerbaïdjan!L14) -> 0
A15: STROLL Lance | G15: =IFERROR(CHOOSE(D15,25,18,15,12,10,8,6,4,2,1)+(F15=1),0) -> 0
G16: =IFERROR(CHOOSE(D16,25,18,15,12,10,8,6,4,2,1)+(F16=1),"") -> 
A17: RUSSELL George | B17: WILLIAMS | G17: =IFERROR(CHOOSE(D17,25,18,15,12,10,8,6,4,2,1)+(F17=1),0) -> 0
A18: KUBICA Robert | G18: =IFERROR(CHOOSE(D18,25,18,15,12,10,8,6,4,2,1)+(F18=1),0) -> 0
G19: =IFERROR(CHOOSE(D19,25,18,15,12,10,8,6,4,2,1)+(F19=1),"") -> 
A20: RICCIARDO Daniel | B20: RENAULT | D20: 1 | G20: =IFERROR(CHOOSE(D20,25,18,15,12,10,8,6,4,2,1)+(F20=1),0) -> 25
A21: HULKENBERG Nico | G21: =IFERROR(CHOOSE(D21,25,18,15,12,10,8,6,4,2,1)+(F21=1),0) -> 0
G22: =IFERROR(CHOOSE(D22,25,18,15,12,10,8,6,4,2,1)+(F22=1),"") -> 
A23: KVYAT Daniil | B23: TORO ROSSO | G23: =IFERROR(CHOOSE(D23,25,18,15,12,10,8,6,4,2,1)+(F23=1),0) -> 0
A24: ALBON Alexander | G24: =IFERROR(CHOOSE(D24,25,18,15,12,10,8,6,4,2,1)+(F24=1),0) -> 0
G25: =IFERROR(CHOOSE(D25,25,18,15,12,10,8,6,4,2,1)+(F25=1),"") -> 
A26: GROSJEAN Romain | B26: HAAS | D26: 3 | G26: =IFERROR(CHOOSE(D26,25,18,15,12,10,8,6,4,2,1)+(F26=1),0) -> 15
A27: MAGNUSSEN Kevin | G27: =IFERROR(CHOOSE(D27,25,18,15,12,10,8,6,4,2,1)+(F27=1),0) -> 0
G28: =IFERROR(CHOOSE(D28,25,18,15,12,10,8,6,4,2,1)+(F28=1),"") -> 
A29: NORRIS Lando | B29: McLAREN | G29: =IFERROR(CHOOSE(D29,25,18,15,12,10,8,6,4,2,1)+(F29=1),0) -> 0
A30: SAINZ.Jr Carlos | G30: =IFERROR(CHOOSE(D30,25,18,15,12,10,8,6,4,2,1)+(F30=1),0) -> 0
G31: =IFERROR(CHOOSE(D31,25,18,15,12,10,8,6,4,2,1)+(F31=1),"") -> 
A32: RAÏKKÖNEN Kimi | B32: ALFA ROMEO | G32: =IFERROR(CHOOSE(D32,25,18,15,12,10,8,6,4,2,1)+(F32=1),0) -> 0
A33: GIOVANIZZI Antonio | G33: =IFERROR(CHOOSE(D33,25,18,15,12,10,8,6,4,2,1)+(F33=1),0) -> 0
G34: =IFERROR(CHOOSE(D34,25,18,15,12,10,8,6,4,2,1)+(F34=1),"") -> 

Sheet Monaco
A1: MONACO - 26 MAI 2019
A3: PILOTES | B3: ECURIES | C3: VOITURES | D3: Finish | E3: Pôle | F3: Pt tour | G3: Points | I3: CLASSEMENT
H4: =IF(G4="","",(RANK(G4,G4:G23))) ->  | I4: ÉCURIES | J4: POINTS | K4: RANG | L4: TOTAL
A5: HAMILTON Lewis | B5: MERCEDES | G5: =IFERROR(CHOOSE(D5,25,18,15,12,10,8,6,4,2,1)+(F5=1),0) -> 0 | I5: MERCEDES | J5: =SUM(G5:G7) -> 0 | K5: =IF(J5="",0,(RANK(J5,$J$5:$J$14)))+COUNTIF(J$5:J5,J5)-1 -> 3 | L5: =IF(J5=0,0,J5+Espagne!L5) -> 0
A6: BOTTAS Valterri | G6: =IFERROR(CHOOSE(D6,25,18,15,12,10,8,6,4,2,1)+(F6=1),0) -> 0 | I6: FERRARI | J6: =SUM(G8:G10) -> 0 | K6: =IF(J6="",0,(RANK(J6,$J$5:$J$14)))+COUNTIF(J$5:J6,J6)-1 -> 4 | L6: =IF(J6=0,0,J6+Espagne!L6) -> 0
G7: =IFERROR(CHOOSE(D7,25,18,15,12,10,8,6,4,2,1)+(F7=1),"") ->  | I7: RED BULL | J7: =SUM(G11:G13) -> 0 | K7: =IF(J7="",0,(RANK(J7,$J$5:$J$14)))+COUNTIF(J$5:J7,J7)-1 -> 5 | L7: =IF(J7=0,0,J7+Espagne!L7) -> 0
A8: VETTEL Sebastian | B8: FERRARI | D8: 20 | G8: =IFERROR(CHOOSE(D8,25,18,15,12,10,8,6,4,2,1)+(F8=1),0) -> 0 | I8: RACING POINT | J8: =SUM(G14:G16) -> 0 | K8: =IF(J8="",0,(RANK(J8,$J$5:$J$14)))+COUNTIF(J$5:J8,J8)-1 -> 6 | L8: =IF(J8=0,0,J8+Espagne!L8) -> 0
A9: LECLERC Charles | G9: =IFERROR(CHOOSE(D9,25,18,15,12,10,8,6,4,2,1)+(F9=1),0) -> 0 | I9: WILLIAMS | J9: =SUM(G17:G19) -> 0 | K9: =IF(J9="",0,(RANK(J9,$J$5:$J$14)))+COUNTIF(J$5:J9,J9)-1 -> 7 | L9: =IF(J9=0,0,J9+Espagne!L9) -> 0
G10: =IFERROR(CHOOSE(D10,25,18,15,12,10,8,6,4,2,1)+(F10=1),"") ->  | I10: RENAULT | J10: =SUM(G20:G22) -> 0 | K10: =IF(J10="",0,(RANK(J10,$J$5:$J$14)))+COUNTIF(J$5:J10,J10)-1 -> 8 | L10: =IF(J10=0,0,J10+Espagne!L10) -> 0
A11: VERSTAPPEN Max | B11: RED BULL | G11: =IFERROR(CHOOSE(D11,25,18,15,12,10,8,6,4,2,1)+(F11=1),0) -> 0 | I11: TORO ROSSO | J11: =SUM(G23:G25) -> 0 | K11: =IF(J11="",0,(RANK(J11,$J$5:$J$14)))+COUNTIF(J$5:J11,J11)-1 -> 9 | L11: =IF(J11=0,0,J11+Espagne!L11) -> 0
A12: GASLY Pierre | G12: =IFERROR(CHOOSE(D12,25,18,15,12,10,8,6,4,2,1)+(F12=1),0) -> 0 | I12: HAAS | J12: =SUM(G26:G28) -> 4 | K12: =IF(J12="",0,(RANK(J12,$J$5:$J$14)))+COUNTIF(J$5:J12,J12)-1 -> 2 | L12: =IF(J12=0,0,J12+Espagne!L12) -> 19
G13: =IFERROR(CHOOSE(D13,25,18,15,12,10,8,6,4,2,1)+(F13=1),"") ->  | I13: Mc LAREN | J13: =SUM(G29:G31) -> 0 | K13: =IF(J13="",0,(RANK(J13,$J$5:$J$14)))+COUNTIF(J$5:J13,J13)-1 -> 10 | L13: =IF(J13=0,0,J13+Espagne!L13) -> 0
A14: PEREZ Sergio | B14: RACING POINT | G14: =IFERROR(CHOOSE(D14,25,18,15,12,10,8,6,4,2,1)+(F14=1),0) -> 0 | I14: ALFA ROMEO | J14: =SUM(G32:G34) -> 25 | K14: =IF(J14="",0,(RANK(J14,$J$5:$J$14)))+COUNTIF(J$5:J14,J14)-1 -> 1 | L14: =IF(J14=0,0,J14+Espagne!L14) -> 25
A15: STROLL Lance | G15: =IFERROR(CHOOSE(D15,25,18,15,12,10,8,6,4,2,1)+(F15=1),0) -> 0
G16: =IFERROR(CHOOSE(D16,25,18,15,12,10,8,6,4,2,1)+(F16=1),"") -> 
A17: RUSSELL George | B17: WILLIAMS | G17: =IFERROR(CHOOSE(D17,25,18,15,12,10,8,6,4,2,1)+(F17=1),0) -> 0
A18: KUBICA Robert | D18: 15 | G18: =IFERROR(CHOOSE(D18,25,18,15,12,10,8,6,4,2,1)+(F18=1),0) -> 0
G19: =IFERROR(CHOOSE(D19,25,18,15,12,10,8,6,4,2,1)+(F19=1),"") -> 
A20: RICCIARDO Daniel | B20: RENAULT | G20: =IFERROR(CHOOSE(D20,25,18,15,12,10,8,6,4,2,1)+(F20=1),0) -> 0
A21: HULKENBERG Nico | G21: =IFERROR(CHOOSE(D21,25,18,15,12,10,8,6,4,2,1)+(F21=1),0) -> 0
G22: =IFERROR(CHOOSE(D22,25,18,15,12,10,8,6,4,2,1)+(F22=1),"") -> 
A23: KVYAT Daniil | B23: TORO ROSSO | G23: =IFERROR(CHOOSE(D23,25,18,15,12,10,8,6,4,2,1)+(F23=1),0) -> 0
A24: ALBON Alexander | G24: =IFERROR(CHOOSE(D24,25,18,15,12,10,8,6,4,2,1)+(F24=1),0) -> 0
G25: =IFERROR(CHOOSE(D25,25,18,15,12,10,8,6,4,2,1)+(F25=1),"") -> 
A26: GROSJEAN Romain | B26: HAAS | G26: =IFERROR(CHOOSE(D26,25,18,15,12,10,8,6,4,2,1)+(F26=1),0) -> 0
A27: MAGNUSSEN Kevin | D27: 8 | G27: =IFERROR(CHOOSE(D27,25,18,15,12,10,8,6,4,2,1)+(F27=1),0) -> 4
G28: =IFERROR(CHOOSE(D28,25,18,15,12,10,8,6,4,2,1)+(F28=1),"") -> 
A29: NORRIS Lando | B29: McLAREN | G29: =IFERROR(CHOOSE(D29,25,18,15,12,10,8,6,4,2,1)+(F29=1),0) -> 0
A30: SAINZ.Jr Carlos | G30: =IFERROR(CHOOSE(D30,25,18,15,12,10,8,6,4,2,1)+(F30=1),0) -> 0
G31: =IFERROR(CHOOSE(D31,25,18,15,12,10,8,6,4,2,1)+(F31=1),"") -> 
A32: RAÏKKÖNEN Kimi | B32: ALFA ROMEO | D32: 1 | G32: =IFERROR(CHOOSE(D32,25,18,15,12,10,8,6,4,2,1)+(F32=1),0) -> 25
A33: GIOVANIZZI Antonio | G33: =IFERROR(CHOOSE(D33,25,18,15,12,10,8,6,4,2,1)+(F33=1),0) -> 0
G34: =IFERROR(CHOOSE(D34,25,18,15,12,10,8,6,4,2,1)+(F34=1),"") -> 

Sheet Canada
A1: CANADA - 17 MARS 2019
A3: PILOTES | B3: ECURIES | C3: VOITURES | D3: Finish | E3: Pôle | F3: Pt tour | G3: Points | I3: CLASSEMENT
H4: =IF(G4="","",(RANK(G4,G4:G23))) ->  | I4: ÉCURIES | J4: POINTS | K4: RANG | L4: TOTAL
A5: HAMILTON Lewis | B5: MERCEDES | D5: 2 | G5: =IFERROR(CHOOSE(D5,25,18,15,12,10,8,6,4,2,1)+(F5=1),0) -> 18 | I5: MERCEDES | J5: =SUM(G5:G7) -> 18 | K5: =IF(J5="",0,(RANK(J5,$J$5:$J$14)))+COUNTIF(J$5:J5,J5)-1 -> 2 | L5: =IF(J5=0,0,J5+Monaco!L5) -> 18
A6: BOTTAS Valterri | G6: =IFERROR(CHOOSE(D6,25,18,15,12,10,8,6,4,2,1)+(F6=1),0) -> 0 | I6: FERRARI | J6: =SUM(G8:G10) -> 0 | K6: =IF(J6="",0,(RANK(J6,$J$5:$J$14)))+COUNTIF(J$5:J6,J6)-1 -> 4 | L6: =IF(J6=0,0,J6+Monaco!L6) -> 0
G7: =IFERROR(CHOOSE(D7,25,18,15,12,10,8,6,4,2,1)+(F7=1),"") ->  | I7: RED BULL | J7: =SUM(G11:G13) -> 0 | K7: =IF(J7="",0,(RANK(J7,$J$5:$J$14)))+COUNTIF(J$5:J7,J7)-1 -> 5 | L7: =IF(J7=0,0,J7+Monaco!L7) -> 0
A8: VETTEL Sebastian | B8: FERRARI | G8: =IFERROR(CHOOSE(D8,25,18,15,12,10,8,6,4,2,1)+(F8=1),0) -> 0 | I8: RACING POINT | J8: =SUM(G14:G16) -> 15 | K8: =IF(J8="",0,(RANK(J8,$J$5:$J$14)))+COUNTIF(J$5:J8,J8)-1 -> 3 | L8: =IF(J8=0,0,J8+Monaco!L8) -> 15
A9: LECLERC Charles | G9: =IFERROR(CHOOSE(D9,25,18,15,12,10,8,6,4,2,1)+(F9=1),0) -> 0 | I9: WILLIAMS | J9: =SUM(G17:G19) -> 0 | K9: =IF(J9="",0,(RANK(J9,$J$5:$J$14)))+COUNTIF(J$5:J9,J9)-1 -> 6 | L9: =IF(J9=0,0,J9+Monaco!L9) -> 0
G10: =IFERROR(CHOOSE(D10,25,18,15,12,10,8,6,4,2,1)+(F10=1),"") ->  | I10: RENAULT | J10: =SUM(G20:G22) -> 25 | K10: =IF(J10="",0,(RANK(J10,$J$5:$J$14)))+COUNTIF(J$5:J10,J10)-1 -> 1 | L10: =IF(J10=0,0,J10+Monaco!L10) -> 25
A11: VERSTAPPEN Max | B11: RED BULL | G11: =IFERROR(CHOOSE(D11,25,18,15,12,10,8,6,4,2,1)+(F11=1),0) -> 0 | I11: TORO ROSSO | J11: =SUM(G23:G25) -> 0 | K11: =IF(J11="",0,(RANK(J11,$J$5:$J$14)))+COUNTIF(J$5:J11,J11)-1 -> 7 | L11: =IF(J11=0,0,J11+Monaco!L11) -> 0
A12: GASLY Pierre | G12: =IFERROR(CHOOSE(D12,25,18,15,12,10,8,6,4,2,1)+(F12=1),0) -> 0 | I12: HAAS | J12: =SUM(G26:G28) -> 0 | K12: =IF(J12="",0,(RANK(J12,$J$5:$J$14)))+COUNTIF(J$5:J12,J12)-1 -> 8 | L12: =IF(J12=0,0,J12+Monaco!L12) -> 0
G13: =IFERROR(CHOOSE(D13,25,18,15,12,10,8,6,4,2,1)+(F13=1),"") ->  | I13: Mc LAREN | J13: =SUM(G29:G31) -> 0 | K13: =IF(J13="",0,(RANK(J13,$J$5:$J$14)))+COUNTIF(J$5:J13,J13)-1 -> 9 | L13: =IF(J13=0,0,J13+Monaco!L13) -> 0
A14: PEREZ Sergio | B14: RACING POINT | D14: 3 | G14: =IFERROR(CHOOSE(D14,25,18,15,12,10,8,6,4,2,1)+(F14=1),0) -> 15 | I14: ALFA ROMEO | J14: =SUM(G32:G34) -> 0 | K14: =IF(J14="",0,(RANK(J14,$J$5:$J$14)))+COUNTIF(J$5:J14,J14)-1 -> 10 | L14: =IF(J14=0,0,J14+Monaco!L14) -> 0
A15: STROLL Lance | G15: =IFERROR(CHOOSE(D15,25,18,15,12,10,8,6,4,2,1)+(F15=1),0) -> 0
G16: =IFERROR(CHOOSE(D16,25,18,15,12,10,8,6,4,2,1)+(F16=1),"") -> 
A17: RUSSELL George | B17: WILLIAMS | G17: =IFERROR(CHOOSE(D17,25,18,15,12,10,8,6,4,2,1)+(F17=1),0) -> 0
A18: KUBICA Robert | G18: =IFERROR(CHOOSE(D18,25,18,15,12,10,8,6,4,2,1)+(F18=1),0) -> 0
G19: =IFERROR(CHOOSE(D19,25,18,15,12,10,8,6,4,2,1)+(F19=1),"") -> 
A20: RICCIARDO Daniel | B20: RENAULT | G20: =IFERROR(CHOOSE(D20,25,18,15,12,10,8,6,4,2,1)+(F20=1),0) -> 0
A21: HULKENBERG Nico | D21: 1 | G21: =IFERROR(CHOOSE(D21,25,18,15,12,10,8,6,4,2,1)+(F21=1),0) -> 25
G22: =IFERROR(CHOOSE(D22,25,18,15,12,10,8,6,4,2,1)+(F22=1),"") -> 
A23: KVYAT Daniil | B23: TORO ROSSO | G23: =IFERROR(CHOOSE(D23,25,18,15,12,10,8,6,4,2,1)+(F23=1),0) -> 0
A24: ALBON Alexander | G24: =IFERROR(CHOOSE(D24,25,18,15,12,10,8,6,4,2,1)+(F24=1),0) -> 0
G25: =IFERROR(CHOOSE(D25,25,18,15,12,10,8,6,4,2,1)+(F25=1),"") -> 
A26: GROSJEAN Romain | B26: HAAS | G26: =IFERROR(CHOOSE(D26,25,18,15,12,10,8,6,4,2,1)+(F26=1),0) -> 0
A27: MAGNUSSEN Kevin | G27: =IFERROR(CHOOSE(D27,25,18,15,12,10,8,6,4,2,1)+(F27=1),0) -> 0
G28: =IFERROR(CHOOSE(D28,25,18,15,12,10,8,6,4,2,1)+(F28=1),"") -> 
A29: NORRIS Lando | B29: McLAREN | G29: =IFERROR(CHOOSE(D29,25,18,15,12,10,8,6,4,2,1)+(F29=1),0) -> 0
A30: SAINZ.Jr Carlos | G30: =IFERROR(CHOOSE(D30,25,18,15,12,10,8,6,4,2,1)+(F30=1),0) -> 0
G31: =IFERROR(CHOOSE(D31,25,18,15,12,10,8,6,4,2,1)+(F31=1),"") -> 
A32: RAÏKKÖNEN Kimi | B32: ALFA ROMEO | D32: OUT | G32: =IFERROR(CHOOSE(D32,25,18,15,12,10,8,6,4,2,1)+(F32=1),0) -> 0
A33: GIOVANIZZI Antonio | G33: =IFERROR(CHOOSE(D33,25,18,15,12,10,8,6,4,2,1)+(F33=1),0) -> 0
G34: =IFERROR(CHOOSE(D34,25,18,15,12,10,8,6,4,2,1)+(F34=1),"") -> 

Sheet France
A1: FRANCE - 17 MARS 2019
A3: PILOTES | B3: ECURIES | C3: VOITURES | D3: Finish | E3: Pôle | F3: Pt tour | G3: Points | I3: CLASSEMENT
H4: =IF(G4="","",(RANK(G4,G4:G23))) ->  | I4: ÉCURIES | J4: POINTS | K4: RANG | L4: TOTAL
A5: HAMILTON Lewis | B5: MERCEDES | G5: =IFERROR(CHOOSE(D5,25,18,15,12,10,8,6,4,2,1)+(F5=1),0) -> 0 | I5: MERCEDES | J5: =SUM(G5:G7) -> 0 | K5: =IF(J5="",0,(RANK(J5,$J$5:$J$14)))+COUNTIF(J$5:J5,J5)-1 -> 2 | L5: =IF(J5=0,0,J5+Canada!L5) -> 0
A6: BOTTAS Valterri | G6: =IFERROR(CHOOSE(D6,25,18,15,12,10,8,6,4,2,1)+(F6=1),0) -> 0 | I6: FERRARI | J6: =SUM(G8:G10) -> 0 | K6: =IF(J6="",0,(RANK(J6,$J$5:$J$14)))+COUNTIF(J$5:J6,J6)-1 -> 3 | L6: =IF(J6=0,0,J6+Canada!L6) -> 0
G7: =IFERROR(CHOOSE(D7,25,18,15,12,10,8,6,4,2,1)+(F7=1),"") ->  | I7: RED BULL | J7: =SUM(G11:G13) -> 0 | K7: =IF(J7="",0,(RANK(J7,$J$5:$J$14)))+COUNTIF(J$5:J7,J7)-1 -> 4 | L7: =IF(J7=0,0,J7+Canada!L7) -> 0
A8: VETTEL Sebastian | B8: FERRARI | G8: =IFERROR(CHOOSE(D8,25,18,15,12,10,8,6,4,2,1)+(F8=1),0) -> 0 | I8: RACING POINT | J8: =SUM(G14:G16) -> 0 | K8: =IF(J8="",0,(RANK(J8,$J$5:$J$14)))+COUNTIF(J$5:J8,J8)-1 -> 5 | L8: =IF(J8=0,0,J8+Canada!L8) -> 0
A9: LECLERC Charles | G9: =IFERROR(CHOOSE(D9,25,18,15,12,10,8,6,4,2,1)+(F9=1),0) -> 0 | I9: WILLIAMS | J9: =SUM(G17:G19) -> 0 | K9: =IF(J9="",0,(RANK(J9,$J$5:$J$14)))+COUNTIF(J$5:J9,J9)-1 -> 6 | L9: =IF(J9=0,0,J9+Canada!L9) -> 0
G10: =IFERROR(CHOOSE(D10,25,18,15,12,10,8,6,4,2,1)+(F10=1),"") ->  | I10: RENAULT | J10: =SUM(G20:G22) -> 0 | K10: =IF(J10="",0,(RANK(J10,$J$5:$J$14)))+COUNTIF(J$5:J10,J10)-1 -> 7 | L10: =IF(J10=0,0,J10+Canada!L10) -> 0
A11: VERSTAPPEN Max | B11: RED BULL | G11: =IFERROR(CHOOSE(D11,25,18,15,12,10,8,6,4,2,1)+(F11=1),0) -> 0 | I11: TORO ROSSO | J11: =SUM(G23:G25) -> 0 | K11: =IF(J11="",0,(RANK(J11,$J$5:$J$14)))+COUNTIF(J$5:J11,J11)-1 -> 8 | L11: =IF(J11=0,0,J11+Canada!L11) -> 0
A12: GASLY Pierre | G12: =IFERROR(CHOOSE(D12,25,18,15,12,10,8,6,4,2,1)+(F12=1),0) -> 0 | I12: HAAS | J12: =SUM(G26:G28) -> 25 | K12: =IF(J12="",0,(RANK(J12,$J$5:$J$14)))+COUNTIF(J$5:J12,J12)-1 -> 1 | L12: =IF(J12=0,0,J12+Canada!L12) -> 25
G13: =IFERROR(CHOOSE(D13,25,18,15,12,10,8,6,4,2,1)+(F13=1),"") ->  | I13: Mc LAREN | J13: =SUM(G29:G31) -> 0 | K13: =IF(J13="",0,(RANK(J13,$J$5:$J$14)))+COUNTIF(J$5:J13,J13)-1 -> 9 | L13: =IF(J13=0,0,J13+Canada!L13) -> 0
A14: PEREZ Sergio | B14: RACING POINT | G14: =IFERROR(CHOOSE(D14,25,18,15,12,10,8,6,4,2,1)+(F14=1),0) -> 0 | I14: ALFA ROMEO | J14: =SUM(G32:G34) -> 0 | K14: =IF(J14="",0,(RANK(J14,$J$5:$J$14)))+COUNTIF(J$5:J14,J14)-1 -> 10 | L14: =IF(J14=0,0,J14+Canada!L14) -> 0
A15: STROLL Lance | G15: =IFERROR(CHOOSE(D15,25,18,15,12,10,8,6,4,2,1)+(F15=1),0) -> 0
G16: =IFERROR(CHOOSE(D16,25,18,15,12,10,8,6,4,2,1)+(F16=1),"") -> 
A17: RUSSELL George | B17: WILLIAMS | G17: =IFERROR(CHOOSE(D17,25,18,15,12,10,8,6,4,2,1)+(F17=1),0) -> 0
A18: KUBICA Robert | G18: =IFERROR(CHOOSE(D18,25,18,15,12,10,8,6,4,2,1)+(F18=1),0) -> 0
G19: =IFERROR(CHOOSE(D19,25,18,15,12,10,8,6,4,2,1)+(F19=1),"") -> 
A20: RICCIARDO Daniel | B20: RENAULT | G20: =IFERROR(CHOOSE(D20,25,18,15,12,10,8,6,4,2,1)+(F20=1),0) -> 0
A21: HULKENBERG Nico | G21: =IFERROR(CHOOSE(D21,25,18,15,12,10,8,6,4,2,1)+(F21=1),0) -> 0
G22: =IFERROR(CHOOSE(D22,25,18,15,12,10,8,6,4,2,1)+(F22=1),"") -> 
A23: KVYAT Daniil | B23: TORO ROSSO | G23: =IFERROR(CHOOSE(D23,25,18,15,12,10,8,6,4,2,1)+(F23=1),0) -> 0
A24: ALBON Alexander | G24: =IFERROR(CHOOSE(D24,25,18,15,12,10,8,6,4,2,1)+(F24=1),0) -> 0
G25: =IFERROR(CHOOSE(D25,25,18,15,12,10,8,6,4,2,1)+(F25=1),"") -> 
A26: GROSJEAN Romain | B26: HAAS | G26: =IFERROR(CHOOSE(D26,25,18,15,12,10,8,6,4,2,1)+(F26=1),0) -> 0
A27: MAGNUSSEN Kevin | D27: 1 | G27: =IFERROR(CHOOSE(D27,25,18,15,12,10,8,6,4,2,1)+(F27=1),0) -> 25
G28: =IFERROR(CHOOSE(D28,25,18,15,12,10,8,6,4,2,1)+(F28=1),"") -> 
A29: NORRIS Lando | B29: McLAREN | G29: =IFERROR(CHOOSE(D29,25,18,15,12,10,8,6,4,2,1)+(F29=1),0) -> 0
A30: SAINZ.Jr Carlos | G30: =IFERROR(CHOOSE(D30,25,18,15,12,10,8,6,4,2,1)+(F30=1),0) -> 0
G31: =IFERROR(CHOOSE(D31,25,18,15,12,10,8,6,4,2,1)+(F31=1),"") -> 
A32: RAÏKKÖNEN Kimi | B32: ALFA ROMEO | G32: =IFERROR(CHOOSE(D32,25,18,15,12,10,8,6,4,2,1)+(F32=1),0) -> 0
A33: GIOVANIZZI Antonio | G33: =IFERROR(CHOOSE(D33,25,18,15,12,10,8,6,4,2,1)+(F33=1),0) -> 0
G34: =IFERROR(CHOOSE(D34,25,18,15,12,10,8,6,4,2,1)+(F34=1),"") -> 

Sheet Autriche
A1: AUTRICHE - 17 MARS 2019
A3: PILOTES | B3: ECURIES | C3: VOITURES | D3: Finish | E3: Pôle | F3: Pt tour | G3: Points | I3: CLASSEMENT
H4: =IF(G4="","",(RANK(G4,G4:G23))) ->  | I4: ÉCURIES | J4: POINTS | K4: RANG | L4: TOTAL
A5: HAMILTON Lewis | B5: MERCEDES | G5: =IFERROR(CHOOSE(D5,25,18,15,12,10,8,6,4,2,1)+(F5=1),0) -> 0 | I5: MERCEDES | J5: =SUM(G5:G7) -> 0 | K5: =IF(J5="",0,(RANK(J5,$J$5:$J$14)))+COUNTIF(J$5:J5,J5)-1 -> 1 | L5: =IF(J5=0,0,J5+France!L5) -> 0
A6: BOTTAS Valterri | G6: =IFERROR(CHOOSE(D6,25,18,15,12,10,8,6,4,2,1)+(F6=1),0) -> 0 | I6: FERRARI | J6: =SUM(G8:G10) -> 0 | K6: =IF(J6="",0,(RANK(J6,$J$5:$J$14)))+COUNTIF(J$5:J6,J6)-1 -> 2 | L6: =IF(J6=0,0,J6+France!L6) -> 0
G7: =IFERROR(CHOOSE(D7,25,18,15,12,10,8,6,4,2,1)+(F7=1),"") ->  | I7: RED BULL | J7: =SUM(G11:G13) -> 0 | K7: =IF(J7="",0,(RANK(J7,$J$5:$J$14)))+COUNTIF(J$5:J7,J7)-1 -> 3 | L7: =IF(J7=0,0,J7+France!L7) -> 0
A8: VETTEL Sebastian | B8: FERRARI | G8: =IFERROR(CHOOSE(D8,25,18,15,12,10,8,6,4,2,1)+(F8=1),0) -> 0 | I8: RACING POINT | J8: =SUM(G14:G16) -> 0 | K8: =IF(J8="",0,(RANK(J8,$J$5:$J$14)))+COUNTIF(J$5:J8,J8)-1 -> 4 | L8: =IF(J8=0,0,J8+France!L8) -> 0
A9: LECLERC Charles | G9: =IFERROR(CHOOSE(D9,25,18,15,12,10,8,6,4,2,1)+(F9=1),0) -> 0 | I9: WILLIAMS | J9: =SUM(G17:G19) -> 0 | K9: =IF(J9="",0,(RANK(J9,$J$5:$J$14)))+COUNTIF(J$5:J9,J9)-1 -> 5 | L9: =IF(J9=0,0,J9+France!L9) -> 0
G10: =IFERROR(CHOOSE(D10,25,18,15,12,10,8,6,4,2,1)+(F10=1),"") ->  | I10: RENAULT | J10: =SUM(G20:G22) -> 0 | K10: =IF(J10="",0,(RANK(J10,$J$5:$J$14)))+COUNTIF(J$5:J10,J10)-1 -> 6 | L10: =IF(J10=0,0,J10+France!L10) -> 0
A11: VERSTAPPEN Max | B11: RED BULL | G11: =IFERROR(CHOOSE(D11,25,18,15,12,10,8,6,4,2,1)+(F11=1),0) -> 0 | I11: TORO ROSSO | J11: =SUM(G23:G25) -> 0 | K11: =IF(J11="",0,(RANK(J11,$J$5:$J$14)))+COUNTIF(J$5:J11,J11)-1 -> 7 | L11: =IF(J11=0,0,J11+France!L11) -> 0
A12: GASLY Pierre | G12: =IFERROR(CHOOSE(D12,25,18,15,12,10,8,6,4,2,1)+(F12=1),0) -> 0 | I12: HAAS | J12: =SUM(G26:G28) -> 0 | K12: =IF(J12="",0,(RANK(J12,$J$5:$J$14)))+COUNTIF(J$5:J12,J12)-1 -> 8 | L12: =IF(J12=0,0,J12+France!L12) -> 0
G13: =IFERROR(CHOOSE(D13,25,18,15,12,10,8,6,4,2,1)+(F13=1),"") ->  | I13: Mc LAREN | J13: =SUM(G29:G31) -> 0 | K13: =IF(J13="",0,(RANK(J13,$J$5:$J$14)))+COUNTIF(J$5:J13,J13)-1 -> 9 | L13: =IF(J13=0,0,J13+France!L13) -> 0
A14: PEREZ Sergio | B14: RACING POINT | G14: =IFERROR(CHOOSE(D14,25,18,15,12,10,8,6,4,2,1)+(F14=1),0) -> 0 | I14: ALFA ROMEO | J14: =SUM(G32:G34) -> 0 | K14: =IF(J14="",0,(RANK(J14,$J$5:$J$14)))+COUNTIF(J$5:J14,J14)-1 -> 10 | L14: =IF(J14=0,0,J14+France!L14) -> 0
A15: STROLL Lance | G15: =IFERROR(CHOOSE(D15,25,18,15,12,10,8,6,4,2,1)+(F15=1),0) -> 0
G16: =IFERROR(CHOOSE(D16,25,18,15,12,10,8,6,4,2,1)+(F16=1),"") -> 
A17: RUSSELL George | B17: WILLIAMS | G17: =IFERROR(CHOOSE(D17,25,18,15,12,10,8,6,4,2,1)+(F17=1),0) -> 0
A18: KUBICA Robert | G18: =IFERROR(CHOOSE(D18,25,18,15,12,10,8,6,4,2,1)+(F18=1),0) -> 0
G19: =IFERROR(CHOOSE(D19,25,18,15,12,10,8,6,4,2,1)+(F19=1),"") -> 
A20: RICCIARDO Daniel | B20: RENAULT | G20: =IFERROR(CHOOSE(D20,25,18,15,12,10,8,6,4,2,1)+(F20=1),0) -> 0
A21: HULKENBERG Nico | G21: =IFERROR(CHOOSE(D21,25,18,15,12,10,8,6,4,2,1)+(F21=1),0) -> 0
G22: =IFERROR(CHOOSE(D22,25,18,15,12,10,8,6,4,2,1)+(F22=1),"") -> 
A23: KVYAT Daniil | B23: TORO ROSSO | G23: =IFERROR(CHOOSE(D23,25,18,15,12,10,8,6,4,2,1)+(F23=1),0) -> 0
A24: ALBON Alexander | G24: =IFERROR(CHOOSE(D24,25,18,15,12,10,8,6,4,2,1)+(F24=1),0) -> 0
G25: =IFERROR(CHOOSE(D25,25,18,15,12,10,8,6,4,2,1)+(F25=1),"") -> 
A26: GROSJEAN Romain | B26: HAAS | G26: =IFERROR(CHOOSE(D26,25,18,15,12,10,8,6,4,2,1)+(F26=1),0) -> 0
A27: MAGNUSSEN Kevin | G27: =IFERROR(CHOOSE(D27,25,18,15,12,10,8,6,4,2,1)+(F27=1),0) -> 0
G28: =IFERROR(CHOOSE(D28,25,18,15,12,10,8,6,4,2,1)+(F28=1),"") -> 
A29: NORRIS Lando | B29: McLAREN | G29: =IFERROR(CHOOSE(D29,25,18,15,12,10,8,6,4,2,1)+(F29=1),0) -> 0
A30: SAINZ.Jr Carlos | G30: =IFERROR(CHOOSE(D30,25,18,15,12,10,8,6,4,2,1)+(F30=1),0) -> 0
G31: =IFERROR(CHOOSE(D31,25,18,15,12,10,8,6,4,2,1)+(F31=1),"") -> 
A32: RAÏKKÖNEN Kimi | B32: ALFA ROMEO | G32: =IFERROR(CHOOSE(D32,25,18,15,12,10,8,6,4,2,1)+(F32=1),0) -> 0
A33: GIOVANIZZI Antonio | G33: =IFERROR(CHOOSE(D33,25,18,15,12,10,8,6,4,2,1)+(F33=1),0) -> 0
G34: =IFERROR(CHOOSE(D34,25,18,15,12,10,8,6,4,2,1)+(F34=1),"") -> 

Sheet GB
A1: ANGLETERRE - 17 MARS 2019
A3: PILOTES | B3: ECURIES | C3: VOITURES | D3: Finish | E3: Pôle | F3: Pt tour | G3: Points | I3: CLASSEMENT
H4: =IF(G4="","",(RANK(G4,G4:G23))) ->  | I4: ÉCURIES | J4: POINTS | K4: RANG | L4: TOTAL
A5: HAMILTON Lewis | B5: MERCEDES | G5: =IFERROR(CHOOSE(D5,25,18,15,12,10,8,6,4,2,1)+(F5=1),0) -> 0 | I5: MERCEDES | J5: =SUM(G5:G7) -> 0 | K5: =IF(J5="",0,(RANK(J5,$J$5:$J$14)))+COUNTIF(J$5:J5,J5)-1 -> 1 | L5: =IF(J5=0,0,J5+Autriche!L5) -> 0
A6: BOTTAS Valterri | G6: =IFERROR(CHOOSE(D6,25,18,15,12,10,8,6,4,2,1)+(F6=1),0) -> 0 | I6: FERRARI | J6: =SUM(G8:G10) -> 0 | K6: =IF(J6="",0,(RANK(J6,$J$5:$J$14)))+COUNTIF(J$5:J6,J6)-1 -> 2 | L6: =IF(J6=0,0,J6+Autriche!L6) -> 0
G7: =IFERROR(CHOOSE(D7,25,18,15,12,10,8,6,4,2,1)+(F7=1),"") ->  | I7: RED BULL | J7: =SUM(G11:G13) -> 0 | K7: =IF(J7="",0,(RANK(J7,$J$5:$J$14)))+COUNTIF(J$5:J7,J7)-1 -> 3 | L7: =IF(J7=0,0,J7+Autriche!L7) -> 0
A8: VETTEL Sebastian | B8: FERRARI | G8: =IFERROR(CHOOSE(D8,25,18,15,12,10,8,6,4,2,1)+(F8=1),0) -> 0 | I8: RACING POINT | J8: =SUM(G14:G16) -> 0 | K8: =IF(J8="",0,(RANK(J8,$J$5:$J$14)))+COUNTIF(J$5:J8,J8)-1 -> 4 | L8: =IF(J8=0,0,J8+Autriche!L8) -> 0
A9: LECLERC Charles | G9: =IFERROR(CHOOSE(D9,25,18,15,12,10,8,6,4,2,1)+(F9=1),0) -> 0 | I9: WILLIAMS | J9: =SUM(G17:G19) -> 0 | K9: =IF(J9="",0,(RANK(J9,$J$5:$J$14)))+COUNTIF(J$5:J9,J9)-1 -> 5 | L9: =IF(J9=0,0,J9+Autriche!L9) -> 0
G10: =IFERROR(CHOOSE(D10,25,18,15,12,10,8,6,4,2,1)+(F10=1),"") ->  | I10: RENAULT | J10: =SUM(G20:G22) -> 0 | K10: =IF(J10="",0,(RANK(J10,$J$5:$J$14)))+COUNTIF(J$5:J10,J10)-1 -> 6 | L10: =IF(J10=0,0,J10+Autriche!L10) -> 0
A11: VERSTAPPEN Max | B11: RED BULL | G11: =IFERROR(CHOOSE(D11,25,18,15,12,10,8,6,4,2,1)+(F11=1),0) -> 0 | I11: TORO ROSSO | J11: =SUM(G23:G25) -> 0 | K11: =IF(J11="",0,(RANK(J11,$J$5:$J$14)))+COUNTIF(J$5:J11,J11)-1 -> 7 | L11: =IF(J11=0,0,J11+Autriche!L11) -> 0
A12: GASLY Pierre | G12: =IFERROR(CHOOSE(D12,25,18,15,12,10,8,6,4,2,1)+(F12=1),0) -> 0 | I12: HAAS | J12: =SUM(G26:G28) -> 0 | K12: =IF(J12="",0,(RANK(J12,$J$5:$J$14)))+COUNTIF(J$5:J12,J12)-1 -> 8 | L12: =IF(J12=0,0,J12+Autriche!L12) -> 0
G13: =IFERROR(CHOOSE(D13,25,18,15,12,10,8,6,4,2,1)+(F13=1),"") ->  | I13: Mc LAREN | J13: =SUM(G29:G31) -> 0 | K13: =IF(J13="",0,(RANK(J13,$J$5:$J$14)))+COUNTIF(J$5:J13,J13)-1 -> 9 | L13: =IF(J13=0,0,J13+Autriche!L13) -> 0
A14: PEREZ Sergio | B14: RACING POINT | G14: =IFERROR(CHOOSE(D14,25,18,15,12,10,8,6,4,2,1)+(F14=1),0) -> 0 | I14: ALFA ROMEO | J14: =SUM(G32:G34) -> 0 | K14: =IF(J14="",0,(RANK(J14,$J$5:$J$14)))+COUNTIF(J$5:J14,J14)-1 -> 10 | L14: =IF(J14=0,0,J14+Autriche!L14) -> 0
A15: STROLL Lance | G15: =IFERROR(CHOOSE(D15,25,18,15,12,10,8,6,4,2,1)+(F15=1),0) -> 0
G16: =IFERROR(CHOOSE(D16,25,18,15,12,10,8,6,4,2,1)+(F16=1),"") -> 
A17: RUSSELL George | B17: WILLIAMS | G17: =IFERROR(CHOOSE(D17,25,18,15,12,10,8,6,4,2,1)+(F17=1),0) -> 0
A18: KUBICA Robert | G18: =IFERROR(CHOOSE(D18,25,18,15,12,10,8,6,4,2,1)+(F18=1),0) -> 0
G19: =IFERROR(CHOOSE(D19,25,18,15,12,10,8,6,4,2,1)+(F19=1),"") -> 
A20: RICCIARDO Daniel | B20: RENAULT | G20: =IFERROR(CHOOSE(D20,25,18,15,12,10,8,6,4,2,1)+(F20=1),0) -> 0
A21: HULKENBERG Nico | G21: =IFERROR(CHOOSE(D21,25,18,15,12,10,8,6,4,2,1)+(F21=1),0) -> 0
G22: =IFERROR(CHOOSE(D22,25,18,15,12,10,8,6,4,2,1)+(F22=1),"") -> 
A23: KVYAT Daniil | B23: TORO ROSSO | G23: =IFERROR(CHOOSE(D23,25,18,15,12,10,8,6,4,2,1)+(F23=1),0) -> 0
A24: ALBON Alexander | G24: =IFERROR(CHOOSE(D24,25,18,15,12,10,8,6,4,2,1)+(F24=1),0) -> 0
G25: =IFERROR(CHOOSE(D25,25,18,15,12,10,8,6,4,2,1)+(F25=1),"") -> 
A26: GROSJEAN Romain | B26: HAAS | G26: =IFERROR(CHOOSE(D26,25,18,15,12,10,8,6,4,2,1)+(F26=1),0) -> 0
A27: MAGNUSSEN Kevin | G27: =IFERROR(CHOOSE(D27,25,18,15,12,10,8,6,4,2,1)+(F27=1),0) -> 0
G28: =IFERROR(CHOOSE(D28,25,18,15,12,10,8,6,4,2,1)+(F28=1),"") -> 
A29: NORRIS Lando | B29: McLAREN | G29: =IFERROR(CHOOSE(D29,25,18,15,12,10,8,6,4,2,1)+(F29=1),0) -> 0
A30: SAINZ.Jr Carlos | G30: =IFERROR(CHOOSE(D30,25,18,15,12,10,8,6,4,2,1)+(F30=1),0) -> 0
G31: =IFERROR(CHOOSE(D31,25,18,15,12,10,8,6,4,2,1)+(F31=1),"") -> 
A32: RAÏKKÖNEN Kimi | B32: ALFA ROMEO | G32: =IFERROR(CHOOSE(D32,25,18,15,12,10,8,6,4,2,1)+(F32=1),0) -> 0
A33: GIOVANIZZI Antonio | G33: =IFERROR(CHOOSE(D33,25,18,15,12,10,8,6,4,2,1)+(F33=1),0) -> 0
G34: =IFERROR(CHOOSE(D34,25,18,15,12,10,8,6,4,2,1)+(F34=1),"") -> 

Sheet Hongrie
A1: HONGRIE - 14 AOUT 2019
A3: PILOTES | B3: ECURIES | C3: VOITURES | D3: Finish | E3: Pôle | F3: Pt tour | G3: Points | I3: CLASSEMENT
H4: =IF(G4="","",(RANK(G4,G4:G23))) ->  | I4: ÉCURIES | J4: POINTS | K4: RANG | L4: TOTAL
A5: HAMILTON Lewis | B5: MERCEDES | D5: 1 | G5: =IFERROR(CHOOSE(D5,25,18,15,12,10,8,6,4,2,1)+(F5=1),0) -> 25 | I5: MERCEDES | J5: =SUM(G5:G7) -> 25 | K5: =IF(J5="",0,(RANK(J5,$J$5:$J$14)))+COUNTIF(J$5:J5,J5)-1 -> 1 | L5: =IF(J5=0,0,J5+#REF!) -> 
A6: BOTTAS Valterri | G6: =IFERROR(CHOOSE(D6,25,18,15,12,10,8,6,4,2,1)+(F6=1),0) -> 0 | I6: FERRARI | J6: =SUM(G8:G10) -> 0 | K6: =IF(J6="",0,(RANK(J6,$J$5:$J$14)))+COUNTIF(J$5:J6,J6)-1 -> 2 | L6: =IF(J6=0,0,J6+#REF!) -> 0
G7: =IFERROR(CHOOSE(D7,25,18,15,12,10,8,6,4,2,1)+(F7=1),"") ->  | I7: RED BULL | J7: =SUM(G11:G13) -> 0 | K7: =IF(J7="",0,(RANK(J7,$J$5:$J$14)))+COUNTIF(J$5:J7,J7)-1 -> 3 | L7: =IF(J7=0,0,J7+#REF!) -> 0
A8: VETTEL Sebastian | B8: FERRARI | G8: =IFERROR(CHOOSE(D8,25,18,15,12,10,8,6,4,2,1)+(F8=1),0) -> 0 | I8: RACING POINT | J8: =SUM(G14:G16) -> 0 | K8: =IF(J8="",0,(RANK(J8,$J$5:$J$14)))+COUNTIF(J$5:J8,J8)-1 -> 4 | L8: =IF(J8=0,0,J8+#REF!) -> 0
A9: LECLERC Charles | G9: =IFERROR(CHOOSE(D9,25,18,15,12,10,8,6,4,2,1)+(F9=1),0) -> 0 | I9: WILLIAMS | J9: =SUM(G17:G19) -> 0 | K9: =IF(J9="",0,(RANK(J9,$J$5:$J$14)))+COUNTIF(J$5:J9,J9)-1 -> 5 | L9: =IF(J9=0,0,J9+#REF!) -> 0
G10: =IFERROR(CHOOSE(D10,25,18,15,12,10,8,6,4,2,1)+(F10=1),"") ->  | I10: RENAULT | J10: =SUM(G20:G22) -> 0 | K10: =IF(J10="",0,(RANK(J10,$J$5:$J$14)))+COUNTIF(J$5:J10,J10)-1 -> 6 | L10: =IF(J10=0,0,J10+#REF!) -> 0
A11: VERSTAPPEN Max | B11: RED BULL | G11: =IFERROR(CHOOSE(D11,25,18,15,12,10,8,6,4,2,1)+(F11=1),0) -> 0 | I11: TORO ROSSO | J11: =SUM(G23:G25) -> 0 | K11: =IF(J11="",0,(RANK(J11,$J$5:$J$14)))+COUNTIF(J$5:J11,J11)-1 -> 7 | L11: =IF(J11=0,0,J11+#REF!) -> 0
A12: GASLY Pierre | G12: =IFERROR(CHOOSE(D12,25,18,15,12,10,8,6,4,2,1)+(F12=1),0) -> 0 | I12: HAAS | J12: =SUM(G26:G28) -> 0 | K12: =IF(J12="",0,(RANK(J12,$J$5:$J$14)))+COUNTIF(J$5:J12,J12)-1 -> 8 | L12: =IF(J12=0,0,J12+#REF!) -> 0
G13: =IFERROR(CHOOSE(D13,25,18,15,12,10,8,6,4,2,1)+(F13=1),"") ->  | I13: Mc LAREN | J13: =SUM(G29:G31) -> 0 | K13: =IF(J13="",0,(RANK(J13,$J$5:$J$14)))+COUNTIF(J$5:J13,J13)-1 -> 9 | L13: =IF(J13=0,0,J13+#REF!) -> 0
A14: PEREZ Sergio | B14: RACING POINT | G14: =IFERROR(CHOOSE(D14,25,18,15,12,10,8,6,4,2,1)+(F14=1),0) -> 0 | I14: ALFA ROMEO | J14: =SUM(G32:G34) -> 0 | K14: =IF(J14="",0,(RANK(J14,$J$5:$J$14)))+COUNTIF(J$5:J14,J14)-1 -> 10 | L14: =IF(J14=0,0,J14+#REF!) -> 0
A15: STROLL Lance | G15: =IFERROR(CHOOSE(D15,25,18,15,12,10,8,6,4,2,1)+(F15=1),0) -> 0
G16: =IFERROR(CHOOSE(D16,25,18,15,12,10,8,6,4,2,1)+(F16=1),"") -> 
A17: RUSSELL George | B17: WILLIAMS | G17: =IFERROR(CHOOSE(D17,25,18,15,12,10,8,6,4,2,1)+(F17=1),0) -> 0
A18: KUBICA Robert | G18: =IFERROR(CHOOSE(D18,25,18,15,12,10,8,6,4,2,1)+(F18=1),0) -> 0
G19: =IFERROR(CHOOSE(D19,25,18,15,12,10,8,6,4,2,1)+(F19=1),"") -> 
A20: RICCIARDO Daniel | B20: RENAULT | G20: =IFERROR(CHOOSE(D20,25,18,15,12,10,8,6,4,2,1)+(F20=1),0) -> 0
A21: HULKENBERG Nico | G21: =IFERROR(CHOOSE(D21,25,18,15,12,10,8,6,4,2,1)+(F21=1),0) -> 0
G22: =IFERROR(CHOOSE(D22,25,18,15,12,10,8,6,4,2,1)+(F22=1),"") -> 
A23: KVYAT Daniil | B23: TORO ROSSO | G23: =IFERROR(CHOOSE(D23,25,18,15,12,10,8,6,4,2,1)+(F23=1),0) -> 0
A24: ALBON Alexander | G24: =IFERROR(CHOOSE(D24,25,18,15,12,10,8,6,4,2,1)+(F24=1),0) -> 0
G25: =IFERROR(CHOOSE(D25,25,18,15,12,10,8,6,4,2,1)+(F25=1),"") -> 
A26: GROSJEAN Romain | B26: HAAS | G26: =IFERROR(CHOOSE(D26,25,18,15,12,10,8,6,4,2,1)+(F26=1),0) -> 0
A27: MAGNUSSEN Kevin | G27: =IFERROR(CHOOSE(D27,25,18,15,12,10,8,6,4,2,1)+(F27=1),0) -> 0
G28: =IFERROR(CHOOSE(D28,25,18,15,12,10,8,6,4,2,1)+(F28=1),"") -> 
A29: NORRIS Lando | B29: McLAREN | G29: =IFERROR(CHOOSE(D29,25,18,15,12,10,8,6,4,2,1)+(F29=1),0) -> 0
A30: SAINZ.Jr Carlos | G30: =IFERROR(CHOOSE(D30,25,18,15,12,10,8,6,4,2,1)+(F30=1),0) -> 0
G31: =IFERROR(CHOOSE(D31,25,18,15,12,10,8,6,4,2,1)+(F31=1),"") -> 
A32: RAÏKKÖNEN Kimi | B32: ALFA ROMEO | G32: =IFERROR(CHOOSE(D32,25,18,15,12,10,8,6,4,2,1)+(F32=1),0) -> 0
A33: GIOVANIZZI Antonio | G33: =IFERROR(CHOOSE(D33,25,18,15,12,10,8,6,4,2,1)+(F33=1),0) -> 0
G34: =IFERROR(CHOOSE(D34,25,18,15,12,10,8,6,4,2,1)+(F34=1),"") -> 
